[Event "EYCC Open-U10 2019"]
[Site "Bratislava"]
[Date "2019.08.06"]
[Round "5.42"]
[White "Pereverzev, Timofei"]
[Black "Jalovec, Igor"]
[Result "1/2-1/2"]
[ECO "C58"]
[WhiteElo "1332"]
[BlackElo "1465"]
[Annotator "NA"]
[PlyCount "128"]
[EventDate "2019.08.02"]
[EventType "swiss"]
[EventCountry "SVK"]
[SourceTitle "playchess.com"]
[Source "ChessBase"]
[SourceQuality "1"]
[TimeControl "40/5400+30:1800+30"]

1. e4 {[%emt 0:00:00]} e5 {[%emt 0:00:37]} 2. Nf3 {[%emt 0:00:00]} Nc6 {[%emt 0:00:53]} 3. Bc4 {[%emt 0:00:04]} Nf6 {[%emt 0:01:01]} 4. Ng5 {[%emt 0:00:15]} d5 {[%emt 0:01:29]} 5. exd5 {[%emt 0:00:16]} Na5 {[%emt 0:00:43]} 6. Bb5+ {[%emt 0:01:28]} c6 {[%emt 0:00:51]} 7. dxc6 {[%emt 0:01:33]} bxc6 {[%emt 0:00:08]} 8. Qf3 {[%emt 0:00:14]} Be7 {[%emt 0:02:01]} 9. Bd3 {[%emt 0:04:15]} O-O {[%emt 0:03:11]} 10. Nc3 {[%emt 0:08:30]} h6 {[%emt 0:05:40]} 11. Nge4 {[%emt 0:01:34]} Nd5 {[%emt 0:07:34]} 12. Ng3 {[%emt 0:07:55]} Nf4 {[%emt 0:11:37]} 13. Bf5 {[%emt 0:08:23]} Bb7 {[%emt 0:23:21]} 14. Nge2 {[%emt 0:35:04]} c5 {[%emt 0:02:51]} 15. Be4 {[%emt 0:00:18]} Bxe4 {[%emt 0:01:46]} 16. Nxe4 {[%emt 0:02:30]} f5 {[%emt 0:00:57]} 17. N4c3 {[%emt 0:00:25]} Nxe2 {[%emt 0:06:23]} 18. Qxe2 {[%emt 0:00:45]} Nc6 {[%emt 0:01:34]} 19. O-O {[%emt 0:07:52]} f4 {[%emt 0:06:44]} 20. Qe4 {[%emt 0:01:55]} Rc8 {[%emt 0:11:43]} 21. Nd5 {[%emt 0:00:59]} Bd6 {[%emt 0:00:10]} 22. c3 {[%emt 0:01:59]} Qe8 {[%emt 0:05:23]} 23. f3 {[%emt 0:02:42]} Qh5 {[%emt 0:00:47]} 24. d3 {[%emt 0:01:23]} Kh8 {[%emt 0:00:35]} 25. Bd2 {[%emt 0:00:10]} Rf5 {[%emt 0:00:48]} 26. Rf2 {[%emt 0:04:01]} Rff8 {[%emt 0:00:22]} 27. a3 {[%emt 0:00:23]} Qf7 {[%emt 0:00:45]} 28. b4 {[%emt 0:01:01]} Ne7 {[%emt 0:01:10]} 29. Nxe7 {[%emt 0:00:08]} Qxe7 {[%emt 0:00:12]} 30. Rff1 {[%emt 0:01:52]} Qf6 {[%emt 0:00:15]} 31. g3 {[%emt 0:01:06]} Rce8 {[%emt 0:01:22]} 32. Kg2 {[%emt 0:00:15]} Re7 {[%emt 0:00:35]} 33. c4 {[%emt 0:00:22]} g5 {[%emt 0:00:36]} 34. g4 {[%emt 0:00:47]} Rh7 {[%emt 0:00:37]} 35. h3 {[%emt 0:00:17]} h5 {[%emt 0:00:33]} 36. Rh1 {[%emt 0:00:08]} h4 {[%emt 0:00:21]} 37. Rhb1 {[%emt 0:00:34]} Rd7 {[%emt 0:00:20]} 38. b5 {[%emt 0:02:18]} Bc7 {[%emt 0:00:21]} 39. a4 {[%emt 0:00:07]} Rd4 {[%emt 0:00:18]} 40. Qe2 {[%emt 0:00:00]} Rfd8 {[%emt 0:00:00]} 41. Rb3 {[%emt 0:01:40]} R8d7 {[%emt 0:06:11]} 42. Raa3 {[%emt 0:01:37]} Qd8 {[%emt 0:00:42]} 43. Bc3 {[%emt 0:02:42]} Re7 {[%emt 0:05:09]} 44. Bxd4 {[%emt 0:00:57]} exd4 {[%emt 0:00:08]} 45. Qf2 {[%emt 0:00:11]} Ba5 {[%emt 0:00:37]} 46. Ra2 {[%emt 0:01:37]} Re3 {[%emt 0:00:33]} 47. Re2 {[%emt 0:01:33]} Qd6 {[%emt 0:00:52]} 48. Kf1 {[%emt 0:02:42]} Qe5 {[%emt 0:00:21]} 49. Rbb2 {[%emt 0:00:58]} Kg7 {[%emt 0:05:34]} 50. Rxe3 {[%emt 0:01:01]} fxe3 {[%emt 0:00:27]} 51. Qg2 {[%emt 0:00:36]} Qf4 {[%emt 0:00:18]} 52. Ke2 {[%emt 0:00:59]} Kf6 {[%emt 0:00:16]} 53. Rb1 {[%emt 0:01:16]} Ke5 {[%emt 0:01:11]} 54. Rh1 {[%emt 0:01:26]} Kf6 {[%emt 0:00:09]} 55. Rb1 {[%emt 0:00:58]} Ke5 {[%emt 0:00:06]} 56. Ra1 {[%emt 0:00:05]} Kf6 {[%emt 0:00:05]} 57. Rg1 {[%emt 0:01:55]} Ke5 {[%emt 0:00:05]} 58. Qh1 {[%emt 0:00:05]} Kf6 {[%emt 0:00:11]} 59. Rg2 {[%emt 0:00:06]} Ke5 {[%emt 0:00:08]} 60. Qb1 {[%emt 0:00:26]} Qf6 {[%emt 0:01:55]} 61. b6 {[%emt 0:01:49]} Qxb6 {[%emt 0:01:12]} 62. Qb5 {[%emt 0:00:15]} Qxb5 {[%emt 0:00:19]} 63. axb5 {[%emt 0:00:16]} Kf4 {[%emt 0:00:09]} 64. Rg1 {[%emt 0:00:25]} Bb6 1/2-1/2

[Event "EYCC Open-U10 2019"]
[Site "Bratislava"]
[Date "2019.08.06"]
[Round "5.43"]
[White "Rabinovich, Yoav"]
[Black "Qasem, Muhamad Mody"]
[Result "1-0"]
[ECO "D02"]
[WhiteElo "1193"]
[BlackElo "1400"]
[Annotator "NA"]
[PlyCount "125"]
[EventDate "2019.08.02"]
[EventType "swiss"]
[EventCountry "SVK"]
[SourceTitle "playchess.com"]
[Source "ChessBase"]
[SourceQuality "1"]
[TimeControl "40/5400+30:1800+30"]

1. d4 Nf6 2. Nf3 d5 3. Bf4 e6 4. e3 c5 5. Nbd2 Bd6 6. Bg3 Qc7 7. Be2 Nbd7 8. O-O O-O 9. Rc1 Bxg3 10. hxg3 e5 11. dxe5 Nxe5 12. c4 Nxf3+ 13. Bxf3 dxc4 14. Nxc4 Be6 15. b3 Rad8 16. Qc2 Nd5 17. Bxd5 Bxd5 18. Rfd1 Qe7 19. Nd2 b6 20. e4 Bb7 21. Re1 Qg5 22. Nf3 Qg6 23. Re3 Rfe8 24. Rce1 Rd7 25. Qc4 Red8 26. Ne5 Qf6 27. Nxd7 Rxd7 28. Rd3 Rc7 29. e5 Qe7 30. e6 h6 31. exf7+ Qxf7 32. Qxf7+ Kxf7 33. Rd8 Bc6 34. Rd3 a5 35. a3 b5 36. Rc3 Bd7 37. Rec1 b4 38. axb4 axb4 39. Rxc5 Rxc5 40. Rxc5 Be6 41. Rb5 Bxb3 42. Rxb4 Ba2 43. Kf1 Kf6 44. Ke2 Bd5 45. f3 g5 46. g4 Kg6 47. Ke3 Bf7 48. Rb6+ Kg7 49. Rb7 Kf6 50. Kd4 Be6 51. Rb6 Kf7 52. Rxe6 Kxe6 53. Ke4 Kf6 54. Kd5 Kg6 55. Ke6 h5 56. gxh5+ Kxh5 57. Kf5 g4 58. f4 Kh4 59. Kg6 g3 60. f5 Kg4 61. f6 Kf4 62. f7 Ke3 63. f8=Q 1-0

[Event "EYCC Open-U10 2019"]
[Site "Bratislava"]
[Date "2019.08.06"]
[Round "5.44"]
[White "Derbenev, Arseniy"]
[Black "Haubold, Christian Lucas"]
[Result "1-0"]
[ECO "C50"]
[WhiteElo "1219"]
[BlackElo "1429"]
[Annotator "NA"]
[PlyCount "73"]
[EventDate "2019.08.02"]
[EventType "swiss"]
[EventCountry "SVK"]
[SourceTitle "playchess.com"]
[Source "ChessBase"]
[SourceQuality "1"]
[TimeControl "40/5400+30:1800+30"]

1. e4 {[%emt 0:00:00]} e5 {[%emt 0:00:00]} 2. Nf3 {[%emt 0:00:00]} Nc6 {[%emt 0:00:00]} 3. Bc4 {[%emt 0:00:12]} Bc5 {[%emt 0:00:15]} 4. Nc3 {[%emt 0:00:08]} Nf6 {[%emt 0:01:14]} 5. d3 {[%emt 0:00:15]} d6 {[%emt 0:00:20]} 6. Bg5 {[%emt 0:00:08]} h6 {[%emt 0:04:28]} 7. Bxf6 {[%emt 0:00:08]} Qxf6 {[%emt 0:00:09]} 8. Nd5 {[%emt 0:00:09]} Qd8 {[%emt 0:00:38]} 9. h3 {[%emt 0:02:02]} Be6 {[%emt 0:08:02]} 10. c3 {[%emt 0:01:45]} a6 {[%emt 0:04:56]} 11. O-O {[%emt 0:02:52]} O-O {[%emt 0:00:14]} 12. b4 {[%emt 0:03:27]} Ba7 {[%emt 0:01:16]} 13. a4 {[%emt 0:00:23]} Nb8 {[%emt 0:11:18]} 14. Qb3 {[%emt 0:02:34]} Qd7 {[%emt 0:06:24]} 15. Ne3 {[%emt 0:06:18]} Bxe3 {[%emt 0:09:07]} 16. fxe3 {[%emt 0:00:49]} Bxc4 {[%emt 0:02:44]} 17. Qxc4 {[%emt 0:00:56]} b5 {[%emt 0:02:22]} 18. Qb3 {[%emt 0:02:05]} Qc6 {[%emt 0:05:59]} 19. axb5 {[%emt 0:01:05]} axb5 {[%emt 0:00:56]} 20. Rxa8 {[%emt 0:04:00]} Qxa8 21. Nh4 {[%emt 0:00:59]} d5 {[%emt 0:18:50]} 22. exd5 {[%emt 0:03:06]} Qa7 {[%emt 0:02:10]} 23. d4 {[%emt 0:00:39]} Kh7 {[%emt 0:03:12]} 24. Qc2+ {[%emt 0:00:53]} Kg8 {[%emt 0:00:27]} 25. Qf5 {[%emt 0:00:31]} f6 {[%emt 0:01:11]} 26. Qe6+ {[%emt 0:00:59]} Kh7 {[%emt 0:00:17]} 27. Qe7 {[%emt 0:00:58]} Nd7 {[%emt 0:00:55]} 28. Qxd7 {[%emt 0:01:04]} Qb8 {[%emt 0:00:16]} 29. Qf5+ {[%emt 0:01:16]} Kg8 {[%emt 0:00:11]} 30. Qg6 {[%emt 0:00:21]} Kh8 {[%emt 0:00:42]} 31. Qg3 {[%emt 0:00:57]} Kh7 {[%emt 0:00:20]} 32. Qg6+ {[%emt 0:00:57]} Kh8 {[%emt 0:00:11]} 33. Rf3 {[%emt 0:02:03]} Qc8 {[%emt 0:00:29]} 34. Nf5 {[%emt 0:01:47]} Qd7 {[%emt 0:00:14]} 35. Rg3 {[%emt 0:00:26]} Rf7 {[%emt 0:00:08]} 36. Nxh6 {[%emt 0:00:35]} gxh6 {[%emt 0:00:12]} 37. Qg8# {[%emt 0:00:20]} 1-0

[Event "EYCC Open-U10 2019"]
[Site "Bratislava"]
[Date "2019.08.06"]
[Round "5.45"]
[White "Romanov, Vladislav O."]
[Black "Klaska, Philipp Leon"]
[Result "1-0"]
[ECO "A13"]
[WhiteElo "1099"]
[BlackElo "1441"]
[Annotator "NA"]
[PlyCount "67"]
[EventDate "2019.08.02"]
[EventType "swiss"]
[EventCountry "SVK"]
[SourceTitle "playchess.com"]
[Source "ChessBase"]
[SourceQuality "1"]
[TimeControl "40/5400+30:1800+30"]

1. c4 {[%emt 0:00:00]} e6 {[%emt 0:00:00]} 2. Nf3 {[%emt 0:00:00]} d5 {[%emt 0:00:03]} 3. b3 {[%emt 0:00:04]} Nf6 {[%emt 0:00:26]} 4. Bb2 {[%emt 0:00:37]} c5 {[%emt 0:00:30]} 5. d3 {[%emt 0:00:56]} Nc6 {[%emt 0:00:27]} 6. Nbd2 {[%emt 0:00:47]} Be7 {[%emt 0:01:48]} 7. g3 {[%emt 0:01:31]} b6 {[%emt 0:03:28]} 8. Bg2 {[%emt 0:01:03]} Bb7 {[%emt 0:01:44]} 9. O-O {[%emt 0:01:24]} O-O {[%emt 0:01:27]} 10. a3 {[%emt 0:03:11]} Qd7 {[%emt 0:03:02]} 11. Qc2 {[%emt 0:03:52]} Rad8 {[%emt 0:03:27]} 12. Rad1 {[%emt 0:12:56]} d4 {[%emt 0:10:35]} 13. Rfe1 {[%emt 0:15:24]} Rfe8 {[%emt 0:03:21]} 14. h3 {[%emt 0:11:17]} Bf8 {[%emt 0:20:33]} 15. Nf1 {[%emt 0:03:28]} e5 {[%emt 0:03:18]} 16. e3 {[%emt 0:01:57]} h6 {[%emt 0:07:55]} 17. Kh2 {[%emt 0:08:53]} e4 {[%emt 0:08:57]} 18. dxe4 {[%emt 0:01:52]} d3 {[%emt 0:00:39]} 19. Qc1 {[%emt 0:02:27]} Nxe4 {[%emt 0:01:13]} 20. Kg1 {[%emt 0:00:56]} f6 {[%emt 0:09:39]} 21. N1d2 {[%emt 0:04:36]} Na5 {[%emt 0:02:42]} 22. Nxe4 {[%emt 0:01:46]} Bxe4 {[%emt 0:01:23]} 23. Qc3 {[%emt 0:02:17]} Bg6 {[%emt 0:04:00]} 24. Rd2 {[%emt 0:01:36]} Be4 {[%emt 0:01:23]} 25. Red1 {[%emt 0:00:35]} Bxf3 {[%emt 0:01:22]} 26. Bxf3 {[%emt 0:00:05]} Qxh3 {[%emt 0:00:09]} 27. b4 {[%emt 0:00:36]} Qf5 {[%emt 0:03:54]} 28. Bg2 {[%emt 0:01:23]} cxb4 {[%emt 0:01:39]} 29. axb4 {[%emt 0:00:07]} Bxb4 {[%emt 0:00:33]} 30. Qxb4 {[%emt 0:00:11]} Qc5 {[%emt 0:00:19]} 31. Qxc5 {[%emt 0:00:53]} bxc5 32. Rxd3 {[%emt 0:00:13]} Rxd3 {[%emt 0:00:13]} 33. Rxd3 {[%emt 0:00:04]} Nxc4 {[%emt 0:00:06]} 34. Bd5+ 1-0

[Event "EYCC Open-U10 2019"]
[Site "Bratislava"]
[Date "2019.08.06"]
[Round "5.46"]
[White "Tykheev, Aldar"]
[Black "Osadchy, Andrey K"]
[Result "1-0"]
[ECO "B43"]
[WhiteElo "1434"]
[BlackElo "1124"]
[Annotator "NA"]
[PlyCount "65"]
[EventDate "2019.08.02"]
[EventType "swiss"]
[EventCountry "SVK"]
[SourceTitle "playchess.com"]
[Source "ChessBase"]
[SourceQuality "1"]
[TimeControl "40/5400+30:1800+30"]

1. e4 {[%emt 0:00:00]} c5 {[%emt 0:00:00]} 2. Nf3 {[%emt 0:00:00]} e6 {[%emt 0:00:00]} 3. d4 {[%emt 0:00:00]} cxd4 {[%emt 0:00:00]} 4. Nxd4 {[%emt 0:00:00]} a6 {[%emt 0:00:00]} 5. Nc3 {[%emt 0:00:04]} Qc7 {[%emt 0:00:00]} 6. Bd3 {[%emt 0:01:58]} Nc6 {[%emt 0:00:00]} 7. Nxc6 {[%emt 0:00:11]} bxc6 {[%emt 0:00:05]} 8. O-O {[%emt 0:01:24]} d5 {[%emt 0:00:48]} 9. Be3 {[%emt 0:00:38]} Qd7 {[%emt 0:00:39]} 10. Bf4 {[%emt 0:04:40]} Qb7 {[%emt 0:03:49]} 11. Rb1 {[%emt 0:06:54]} Nf6 {[%emt 0:00:18]} 12. Re1 {[%emt 0:02:16]} Be7 {[%emt 0:00:31]} 13. e5 {[%emt 0:04:42]} Nd7 {[%emt 0:01:00]} 14. Qg4 {[%emt 0:00:31]} Bf8 {[%emt 0:02:16]} 15. Bg3 {[%emt 0:04:02]} g6 {[%emt 0:01:36]} 16. h4 {[%emt 0:01:37]} h5 {[%emt 0:00:29]} 17. Qh3 {[%emt 0:00:29]} Bg7 {[%emt 0:00:16]} 18. Bxg6 {[%emt 0:05:08]} fxg6 {[%emt 0:01:14]} 19. Qxe6+ {[%emt 0:00:01]} Kd8 {[%emt 0:02:40]} 20. Bf4 {[%emt 0:01:19]} Bf8 {[%emt 0:05:31]} 21. Qxg6 {[%emt 0:00:50]} Be7 {[%emt 0:04:37]} 22. Bg5 {[%emt 0:03:08]} Bxg5 {[%emt 0:04:41]} 23. hxg5 {[%emt 0:01:49]} Re8 {[%emt 0:03:46]} 24. f4 {[%emt 0:03:09]} Qb6+ {[%emt 0:00:46]} 25. Kh1 {[%emt 0:00:24]} Bb7 {[%emt 0:00:32]} 26. e6 {[%emt 0:00:49]} Qf2 {[%emt 0:03:18]} 27. Qf7 {[%emt 0:12:52]} Re7 {[%emt 0:01:10]} 28. Qf5 {[%emt 0:10:44]} Kc7 {[%emt 0:00:58]} 29. Qh3 {[%emt 0:06:47]} Qxf4 {[%emt 0:03:23]} 30. exd7 {[%emt 0:01:07]} Rxe1+ {[%emt 0:00:16]} 31. Rxe1 {[%emt 0:00:23]} Qxg5 {[%emt 0:00:10]} 32. Na4 {[%emt 0:08:05]} Qd2 {[%emt 0:01:19]} 33. Qg3+ {[%emt 0:00:12]} 1-0

[Event "EYCC Open-U10 2019"]
[Site "Bratislava"]
[Date "2019.08.06"]
[Round "5.47"]
[White "Gkogkas, Panteleimon"]
[Black "Blumenthal, Michael"]
[Result "0-1"]
[ECO "B23"]
[WhiteElo "1081"]
[BlackElo "1311"]
[Annotator "NA"]
[PlyCount "105"]
[EventDate "2019.08.02"]
[EventType "swiss"]
[EventCountry "SVK"]
[SourceTitle "playchess.com"]
[Source "ChessBase"]
[SourceQuality "1"]
[TimeControl "40/5400+30:1800+30"]

1. e4 {[%emt 0:00:00]} c5 {[%emt 0:00:00]} 2. Nc3 {[%emt 0:00:00]} Nc6 {[%emt 0:00:00]} 3. Bc4 {[%emt 0:00:00]} g6 {[%emt 0:00:00]} 4. f4 {[%emt 0:00:11]} Bg7 {[%emt 0:00:00]} 5. Nf3 {[%emt 0:00:45]} e6 {[%emt 0:00:07]} 6. f5 {[%emt 0:00:15]} Nge7 {[%emt 0:05:45]} 7. f6 {[%emt 0:00:43]} Bxf6 {[%emt 0:00:29]} 8. d3 {[%emt 0:08:29]} Bg7 {[%emt 0:02:37]} 9. O-O {[%emt 0:00:53]} O-O {[%emt 0:01:16]} 10. Qe1 {[%emt 0:01:41]} d5 {[%emt 0:07:03]} 11. Bb3 {[%emt 0:01:57]} Nd4 {[%emt 0:02:54]} 12. Qh4 {[%emt 0:01:58]} Nxb3 {[%emt 0:04:53]} 13. axb3 {[%emt 0:00:16]} d4 {[%emt 0:09:09]} 14. Ne2 {[%emt 0:07:21]} Nc6 {[%emt 0:00:12]} 15. Qf2 {[%emt 0:14:24]} e5 {[%emt 0:10:35]} 16. Ng3 {[%emt 0:07:26]} Qe8 {[%emt 0:07:46]} 17. Nd2 {[%emt 0:06:18]} f5 {[%emt 0:02:22]} 18. Qe1 {[%emt 0:05:26]} f4 {[%emt 0:06:37]} 19. Ne2 {[%emt 0:01:35]} Nb4 {[%emt 0:05:10]} 20. Qd1 {[%emt 0:01:57]} g5 {[%emt 0:02:04]} 21. g3 {[%emt 0:03:38]} Bg4 {[%emt 0:04:49]} 22. gxf4 {[%emt 0:04:52]} Bxe2 {[%emt 0:03:31]} 23. Qxe2 {[%emt 0:00:18]} Nxc2 {[%emt 0:00:07]} 24. Ra5 {[%emt 0:00:18]} b6 {[%emt 0:00:34]} 25. Ra4 {[%emt 0:00:29]} gxf4 {[%emt 0:00:59]} 26. Kh1 {[%emt 0:01:27]} Ne3 {[%emt 0:01:04]} 27. Rg1 {[%emt 0:00:10]} Kh8 {[%emt 0:00:07]} 28. Nf3 {[%emt 0:00:17]} Bf6 {[%emt 0:03:25]} 29. Bxe3 {[%emt 0:00:45]} fxe3 {[%emt 0:00:33]} 30. Raa1 {[%emt 0:00:22]} Qf7 {[%emt 0:00:40]} 31. Raf1 {[%emt 0:00:18]} Qxb3 {[%emt 0:01:09]} 32. Ng5 {[%emt 0:00:45]} Bxg5 {[%emt 0:00:25]} 33. Rxf8+ {[%emt 0:00:12]} Rxf8 {[%emt 0:00:09]} 34. Rxg5 {[%emt 0:00:04]} Rf2 {[%emt 0:01:37]} 35. Qh5 {[%emt 0:00:06]} Rf1+ {[%emt 0:02:07]} 36. Rg1 {[%emt 0:00:26]} Rxg1+ {[%emt 0:00:30]} 37. Kxg1 {[%emt 0:00:05]} Qg8+ {[%emt 0:00:34]} 38. Kh1 {[%emt 0:00:21]} Qe6 {[%emt 0:01:07]} 39. Qg5 {[%emt 0:00:00]} h6 {[%emt 0:00:00]} 40. Qd8+ {[%emt 0:00:00]} Kg7 {[%emt 0:00:00]} 41. Qh4 {[%emt 0:01:52]} Qf7 {[%emt 0:08:18]} 42. Qg4+ {[%emt 0:00:35]} Kh7 {[%emt 0:00:17]} 43. Qg2 {[%emt 0:00:27]} Qf2 {[%emt 0:00:48]} 44. Qxf2 exf2 {[%emt 0:00:16]} 45. Kg2 {[%emt 0:00:22]} f1=Q+ {[%emt 0:00:10]} 46. Kxf1 {[%emt 0:00:06]} Kg6 {[%emt 0:00:14]} 47. Kg2 {[%emt 0:02:20]} Kg5 {[%emt 0:00:49]} 48. Kg3 {[%emt 0:00:07]} Kh5 {[%emt 0:00:07]} 49. Kf3 {[%emt 0:00:36]} Kh4 {[%emt 0:00:20]} 50. Kf2 {[%emt 0:00:06]} b5 {[%emt 0:00:28]} 51. b3 {[%emt 0:00:08]} a5 {[%emt 0:00:04]} 52. Ke2 {[%emt 0:00:05]} Kh3 {[%emt 0:00:30]} 53. Kf3 0-1

[Event "EYCC Open-U10 2019"]
[Site "Bratislava"]
[Date "2019.08.06"]
[Round "5.48"]
[White "Udipi, Kala Kishan"]
[Black "Dotzer, Lukas"]
[Result "1/2-1/2"]
[ECO "D02"]
[WhiteElo "1732"]
[BlackElo "1070"]
[Annotator "NA"]
[PlyCount "62"]
[EventDate "2019.08.02"]
[EventType "swiss"]
[EventCountry "SVK"]
[SourceTitle "playchess.com"]
[Source "ChessBase"]
[SourceQuality "1"]
[TimeControl "40/5400+30:1800+30"]

1. d4 {[%emt 0:00:00]} d5 {[%emt 0:00:00]} 2. Nf3 {[%emt 0:00:00]} Nf6 3. Bf4 {[%emt 0:00:16]} e6 {[%emt 0:00:18]} 4. e3 {[%emt 0:00:23]} c5 {[%emt 0:00:43]} 5. c3 {[%emt 0:00:31]} Nc6 {[%emt 0:01:01]} 6. Bd3 {[%emt 0:01:53]} Bd6 {[%emt 0:01:14]} 7. Bg3 {[%emt 0:00:30]} O-O {[%emt 0:02:27]} 8. Nbd2 {[%emt 0:00:51]} Re8 {[%emt 0:01:59]} 9. Ne5 {[%emt 0:06:24]} Qc7 {[%emt 0:04:48]} 10. f4 {[%emt 0:07:40]} Ne7 {[%emt 0:06:05]} 11. Bh4 {[%emt 0:05:28]} Ng6 {[%emt 0:02:46]} 12. Bg3 {[%emt 0:12:29]} Nd7 {[%emt 0:03:44]} 13. O-O {[%emt 0:03:33]} Ndf8 {[%emt 0:07:20]} 14. Qh5 {[%emt 0:08:21]} f5 {[%emt 0:02:37]} 15. Ndf3 {[%emt 0:02:42]} c4 {[%emt 0:03:29]} 16. Bc2 {[%emt 0:01:42]} a6 {[%emt 0:04:12]} 17. Nxg6 {[%emt 0:08:11]} hxg6 {[%emt 0:05:37]} 18. Qh3 {[%emt 0:01:09]} b5 {[%emt 0:00:30]} 19. Ne5 {[%emt 0:06:41]} a5 {[%emt 0:02:33]} 20. Be1 {[%emt 0:02:47]} Bxe5 {[%emt 0:04:50]} 21. fxe5 {[%emt 0:01:17]} Bd7 {[%emt 0:03:00]} 22. Qg3 {[%emt 0:01:51]} Reb8 {[%emt 0:02:47]} 23. a3 {[%emt 0:05:29]} Qd8 {[%emt 0:01:16]} 24. h4 {[%emt 0:01:01]} Be8 {[%emt 0:01:36]} 25. Qf3 {[%emt 0:01:40]} Nh7 {[%emt 0:04:22]} 26. g4 {[%emt 0:02:56]} Ra7 {[%emt 0:01:43]} 27. g5 {[%emt 0:00:44]} Qe7 {[%emt 0:01:34]} 28. Bd2 {[%emt 0:00:18]} Rbb7 {[%emt 0:01:01]} 29. Rf2 {[%emt 0:01:30]} Nf8 {[%emt 0:02:44]} 30. Rg2 {[%emt 0:01:28]} Nd7 {[%emt 0:00:59]} 31. Rf1 {[%emt 0:02:08]} Nb8 {[%emt 0:00:30]} 1/2-1/2

[Event "EYCC Open-U10 2019"]
[Site "Bratislava"]
[Date "2019.08.07"]
[Round "6.1"]
[White "Vetokhin, Savva"]
[Black "Samunenkov, Ihor"]
[Result "1-0"]
[ECO "B36"]
[WhiteElo "1954"]
[BlackElo "1985"]
[Annotator "NA"]
[PlyCount "107"]
[EventDate "2019.08.02"]
[EventType "swiss"]
[EventCountry "SVK"]
[SourceTitle "playchess.com"]
[Source "ChessBase"]
[SourceQuality "1"]
[TimeControl "40/5400+30:1800+30"]

1. e4 c5 2. Nf3 Nc6 3. d4 cxd4 4. Nxd4 g6 5. c4 Nf6 6. Nc3 Nxd4 7. Qxd4 d6 8. Be2 Bg7 9. Be3 O-O 10. Qd2 Qa5 11. Rc1 Be6 12. f3 Rfc8 13. b3 a6 14. Na4 Qxd2+ 15. Kxd2 Nd7 16. g4 f5 17. exf5 gxf5 18. h3 Rf8 19. f4 d5 20. cxd5 Bxd5 21. Rhd1 Rac8 22. Ke1 e6 23. Rxc8 Rxc8 24. gxf5 b5 25. Nb6 Nxb6 26. Bxb6 Rf8 27. Bg4 exf5 28. Bh5 Bc6 29. Bd4 Rd8 30. Bxg7 Rxd1+ 31. Kxd1 Kxg7 32. b4 Kf6 33. Kd2 Ke6 34. Ke3 Be4 35. Kd4 Kd6 36. Bf7 Bc2 37. Bd5 Bb1 38. a3 Bc2 39. Bb7 Bb3 40. Bxa6 Ba4 41. Bb7 Kc7 42. Bf3 Kd6 43. Be2 h6 44. Bd3 h5 45. Bxf5 h4 46. Bd3 Ke6 47. Kc5 Bd1 48. Kxb5 Bf3 49. Bf1 Kf5 50. a4 Kxf4 51. a5 Kg3 52. a6 Kf2 53. Bd3 Kg3 54. Bf5 1-0

[Event "EYCC Open-U10 2019"]
[Site "Bratislava"]
[Date "2019.08.07"]
[Round "6.2"]
[White "Azadaliyev, Jahandar"]
[Black "Finek, Vaclav"]
[Result "1/2-1/2"]
[ECO "D45"]
[WhiteElo "1905"]
[BlackElo "2043"]
[Annotator "NA"]
[PlyCount "112"]
[EventDate "2019.08.02"]
[EventType "swiss"]
[EventCountry "SVK"]
[SourceTitle "playchess.com"]
[Source "ChessBase"]
[SourceQuality "1"]
[TimeControl "40/5400+30:1800+30"]

1. d4 d5 2. c4 c6 3. e3 Nf6 4. Nf3 e6 5. Nc3 Bd6 6. Qc2 Nbd7 7. Bd3 O-O 8. O-O dxc4 9. Bxc4 b5 10. Be2 Bb7 11. e4 e5 12. Rd1 Qc7 13. dxe5 Nxe5 14. Nd4 Bc5 15. h3 a6 16. Nb3 Bb6 17. Bg5 Ng6 18. Bxf6 gxf6 19. Nd4 Rad8 20. Nf5 Qf4 21. Bg4 Bc8 22. g3 Qc7 23. Kg2 Bxf5 24. Bxf5 Kh8 25. Rac1 Qe5 26. Ne2 c5 27. f4 Qe7 28. Nc3 Rg8 29. Kf3 c4 30. Nd5 Qc5 31. b4 Qc6 32. Bxg6 fxg6 33. Ne7 Qe6 34. Nxg8 Rxg8 35. Qc3 Re8 36. Re1 Kg8 37. g4 g5 38. Rcd1 gxf4 39. Rd5 Be3 40. Qc2 c3 41. a4 bxa4 42. Ra1 Bd2 43. Rxa4 Kh8 44. Qd3 Qb6 45. Rc5 a5 46. Qd7 Rd8 47. Qc6 Qxc6 48. Rxc6 axb4 49. Rxb4 c2 50. Rbc4 c1=Q 51. Rxc1 Bxc1 52. Rxc1 Rd3+ 53. Kxf4 Rxh3 54. Rc7 Kg8 55. g5 fxg5+ 56. Kxg5 Rf3 {Kf4 Rxf4} 1/2-1/2